fUSD/lending_fUSD_20240712
["ID","MTS","AMOUNT","RATE_DAILY","PERIOD"]
[331853087,1720794659983,-289.218622,0.00013907,2]
[331853089,1720794659992,-216.775068,0.00013907,2]
[331853091,1720794660002,-160.599293,0.00013907,2]
[331853093,1720794660011,-420.0,0.00013913,2]
[331853095,1720794660020,-2843.74578093,0.00013914,2]
[331853097,1720794660030,-500.0,0.00013916,2]
[331853099,1720794660039,-500.0,0.00013916,2]
[331853101,1720794660049,-500.0,0.00013916,2]
[331853103,1720794660059,-531.42,0.00013916,2]
[331853105,1720794660072,-500.0,0.00013916,2]
[331853107,1720794660082,-588.13,0.00013916,2]
[331853109,1720794660091,-500.0,0.00013916,2]
[331853111,1720794660101,-500.0,0.00013916,2]
[331853113,1720794660111,-624.05,0.00013916,2]
[331853115,1720794660121,-500.0,0.00013916,2]
[331853117,1720794660131,-500.0,0.00013916,2]
[331853119,1720794660140,-437.69893089,0.00013916,2]
[331853121,1720794660151,-500.0,0.00013916,2]
[331853123,1720794660161,-500.0,0.00013916,2]
[331853125,1720794660171,-500.0,0.00013916,2]
[331853127,1720794660183,-500.0,0.00013916,2]
[331853129,1720794660194,-500.0,0.00013916,2]
[331853131,1720794660203,-500.0,0.00013916,2]
[331853133,1720794660213,-500.0,0.00013916,2]
[331853135,1720794660222,-500.0,0.00013916,2]
[331853137,1720794660231,-500.0,0.00013916,2]
[331853139,1720794660241,-500.0,0.00013916,2]
[331853141,1720794660250,-500.0,0.00013916,2]
[331853143,1720794660259,-500.0,0.00013916,2]
[331853145,1720794660268,-634.55,0.00013916,2]
[331853147,1720794660278,-677.95,0.00013916,2]
[331853149,1720794660287,-500.0,0.00013916,2]
[331853151,1720794660296,-500.0,0.00013916,2]
[331853152,1720794660306,-500.0,0.00013916,2]
[331853154,1720794660315,-500.0,0.00013916,2]
[331853156,1720794660324,-500.0,0.00013916,2]
[331853158,1720794660334,-500.0,0.00013916,2]
[331853160,1720794660343,-500.0,0.00013916,2]
[331853162,1720794660353,-500.0,0.00013916,2]
[331853164,1720794660362,-500.0,0.00013916,2]
[331853166,1720794660371,-500.0,0.00013916,2]
[331853168,1720794660381,-579.6971942,0.00013916,2]
[331853170,1720794660390,-500.0,0.00013916,2]
[331853172,1720794660399,-500.0,0.00013916,2]
[331853174,1720794660408,-500.0,0.00013916,2]
[331853176,1720794660418,-500.0,0.00013916,2]
[331853178,1720794660427,-410.9737951,0.00013916,2]
[331853180,1720794660438,-500.0,0.00013916,2]
[331853182,1720794660448,-500.0,0.00013916,2]
[331853184,1720794660457,-500.0,0.00013916,2]
[331853186,1720794660466,-500.0,0.00013916,2]
[331853188,1720794660475,-500.0,0.00013916,2]
[331853190,1720794660484,-586.38,0.00013916,2]
[331853192,1720794660493,-500.0,0.00013916,2]
[331853194,1720794660502,-500.0,0.00013916,2]
[331853196,1720794660511,-500.0,0.00013916,2]
[331853198,1720794660520,-500.0,0.00013916,2]
[331853200,1720794660529,-819.14,0.00013916,2]
[331853202,1720794660538,-806.25,0.00013916,2]
[331853204,1720794660548,-500.0,0.00013916,2]
[331853206,1720794660557,-500.0,0.00013916,2]
[331853208,1720794660566,-500.0,0.00013916,2]
[331853210,1720794660576,-500.0,0.00013916,2]
[331853212,1720794660585,-500.0,0.00013916,2]
[331853214,1720794660594,-500.0,0.00013916,2]
[331853216,1720794660602,-500.0,0.00013916,2]
[331853218,1720794660611,-500.0,0.00013916,2]
[331853219,1720794660620,-500.0,0.00013916,2]
[331853221,1720794660629,-500.0,0.00013916,2]
[331853223,1720794660638,-500.0,0.00013916,2]
[331853225,1720794660647,-365.62811278,0.00013916,2]
[331853227,1720794660656,-500.0,0.00013916,2]
[331853229,1720794660665,-691.25,0.00013916,2]
[331853231,1720794660674,-710.01,0.00013916,2]
[331853233,1720794660683,-870.72,0.00013916,2]
[331853235,1720794660694,-500.0,0.00013916,2]
[331853237,1720794660703,-500.0,0.00013916,2]
[331853239,1720794660713,-500.0,0.00013916,2]
[331853241,1720794660722,-500.0,0.00013916,2]
[331853243,1720794660732,-500.0,0.00013916,2]
[331853245,1720794660741,-393.43897971,0.00013916,2]
[331853247,1720794660751,-500.0,0.00013916,2]
[331853249,1720794660760,-500.0,0.00013916,2]
[331853251,1720794660770,-500.0,0.00013916,2]
[331853253,1720794660779,-500.0,0.00013916,2]
[331853255,1720794660788,-500.0,0.00013916,2]
[331853257,1720794660798,-308.97212961,0.00013916,2]
[331853259,1720794660807,-500.0,0.00013916,2]
[331853261,1720794660816,-500.0,0.00013916,2]
[331853263,1720794660826,-500.0,0.00013916,2]
[331853265,1720794660835,-500.0,0.00013916,2]
[331853267,1720794660844,-500.0,0.00013916,2]
[331853269,1720794660854,-500.0,0.00013916,2]
[331853271,1720794660863,-500.0,0.00013916,2]
[331853273,1720794660873,-500.0,0.00013916,2]
[331853275,1720794660882,-500.0,0.00013916,2]
[331853277,1720794660891,-570.65,0.00013916,2]
[331853279,1720794660901,-582.03,0.00013916,2]
[331853281,1720794660910,-506.37,0.00013916,2]
[331853283,1720794660920,-500.0,0.00013916,2]
[331853285,1720794660929,-500.0,0.00013916,2]
[331853287,1720794660941,-500.0,0.00013916,2]
[331853288,1720794660951,-500.0,0.00013916,2]
[331853289,1720794660963,-500.0,0.00013916,2]
[331853290,1720794660972,-500.0,0.00013916,2]
[331853291,1720794660981,-500.0,0.00013916,2]
[331853292,1720794660991,-500.0,0.00013916,2]
[331853293,1720794661000,-500.0,0.00013916,2]
[331853294,1720794661009,-500.0,0.00013916,2]
[331853295,1720794661019,-500.0,0.00013916,2]
[331853296,1720794661028,-500.0,0.00013916,2]
[331853297,1720794661037,-500.0,0.00013916,2]
[331853298,1720794661046,-646.31,0.00013916,2]
[331853299,1720794661056,-500.0,0.00013916,2]
[331853300,1720794661065,-381.27037036,0.00013916,2]
[331853301,1720794661078,-500.0,0.00013916,2]
[331853302,1720794661087,-500.0,0.00013916,2]
[331853303,1720794661096,-500.0,0.00013916,2]
[331853304,1720794661106,-500.0,0.00013916,2]
[331853305,1720794661115,-500.0,0.00013916,2]
[331853306,1720794661124,-559.09,0.00013916,2]
[331853307,1720794661135,-500.0,0.00013916,2]
[331853308,1720794661148,-171.44142629,0.00013916,2]
[331853309,1720794661157,-500.0,0.00013916,2]
[331853310,1720794661166,-577.19,0.00013916,2]
[331853311,1720794661176,-560.07,0.00013916,2]
[331853312,1720794661188,-1091.77,0.00013916,2]
[331853313,1720794661198,-500.0,0.00013916,2]
[331853314,1720794661207,-500.0,0.00013916,2]
[331853315,1720794661216,-500.0,0.00013916,2]
[331853316,1720794661225,-500.0,0.00013916,2]
[331853317,1720794661235,-500.0,0.00013916,2]
[331853318,1720794661244,-500.0,0.00013916,2]
[331853320,1720794661253,-500.0,0.00013916,2]
[331853322,1720794661263,-498.56636855,0.00013916,2]
[331853324,1720794661272,-500.0,0.00013916,2]
[331853326,1720794661281,-500.0,0.00013916,2]
[331853328,1720794661290,-500.0,0.00013916,2]
[331853329,1720794661299,-500.0,0.00013916,2]
[331853330,1720794661308,-500.0,0.00013916,2]
[331853331,1720794661317,-558.7,0.00013916,2]
[331853332,1720794661327,-500.0,0.00013916,2]
[331853333,1720794661337,-500.0,0.00013916,2]
[331853334,1720794661346,-500.0,0.00013916,2]
[331853335,1720794661356,-500.0,0.00013916,2]
[331853336,1720794661366,-500.0,0.00013916,2]
[331853337,1720794661375,-500.0,0.00013916,2]
[331853338,1720794661384,-500.0,0.00013916,2]
[331853339,1720794661394,-500.0,0.00013916,2]
[331853340,1720794661403,-500.0,0.00013916,2]
[331853341,1720794661412,-500.0,0.00013916,2]
[331853343,1720794661423,-500.0,0.00013916,2]
[331853345,1720794661432,-500.0,0.00013916,2]
[331853347,1720794661445,-500.0,0.00013916,2]
[331853348,1720794661455,-500.0,0.00013916,2]
[331853349,1720794661464,-566.18,0.00013916,2]
[331853351,1720794661478,-446.69974588,0.00013916,2]
[331853352,1720794661487,-500.0,0.00013916,2]
[331853353,1720794661495,-296.94455324,0.00013916,2]
[331853354,1720794661505,-500.0,0.00013916,2]
[331853355,1720794661514,-500.0,0.00013916,2]
[331853356,1720794661523,-500.0,0.00013916,2]
[331853357,1720794661532,-557.9,0.00013916,2]
[331853358,1720794661541,-500.0,0.00013916,2]
[331853359,1720794661551,-636.84953145,0.00013916,2]
[331853360,1720794661560,-500.0,0.00013916,2]
[331853361,1720794661569,-500.0,0.00013917,2]
[331853362,1720794661578,-524.11,0.00013917,2]
[331853363,1720794661588,-500.0,0.00013917,2]
[331853364,1720794661598,-500.0,0.00013917,2]
[331853365,1720794661607,-500.0,0.00013917,2]
[331853366,1720794661616,-798.11,0.00013917,2]
[331853367,1720794661626,-500.0,0.00013917,2]
[331853368,1720794661635,-543.87,0.00013917,2]
[331853369,1720794661644,-500.0,0.00013917,2]
[331853370,1720794661653,-714.43,0.00013917,2]
[331853371,1720794661662,-717.24,0.00013917,2]
[331853372,1720794661671,-500.0,0.00013917,2]
[331853373,1720794661681,-808.16,0.00013917,2]
[331853374,1720794661693,-574.63,0.00013917,2]
[331853375,1720794661702,-625.21,0.00013917,2]
[331853376,1720794661711,-945.63,0.00013917,2]
[331853377,1720794661721,-500.0,0.00013917,2]
[331853378,1720794661730,-500.0,0.00013917,2]
[331853379,1720794661740,-500.0,0.00013917,2]
[331853380,1720794661750,-500.0,0.00013917,2]
[331853381,1720794661760,-500.0,0.00013917,2]
[331853382,1720794661770,-500.0,0.00013917,2]
[331853383,1720794661779,-677.22,0.00013917,2]
[331853384,1720794661789,-500.0,0.00013917,2]
[331853385,1720794661798,-439.32354467,0.00013917,2]
[331853386,1720794661808,-500.0,0.00013917,2]
[331853387,1720794661818,-500.0,0.00013917,2]
[331853388,1720794661827,-567.5,0.00013917,2]
[331853389,1720794661838,-799.61,0.00013917,2]
[331853390,1720794661848,-500.0,0.00013917,2]
[331853391,1720794661857,-500.0,0.00013917,2]
[331853392,1720794661867,-500.0,0.00013917,2]
[331853393,1720794661877,-500.0,0.00013917,2]
[331853394,1720794661886,-500.0,0.00013917,2]
[331853395,1720794661895,-743.72,0.00013917,2]
[331853396,1720794661904,-500.0,0.00013917,2]
[331853397,1720794661914,-500.0,0.00013917,2]
[331853398,1720794661923,-500.0,0.00013917,2]
[331853399,1720794661933,-500.0,0.00013917,2]
[331853400,1720794661947,-500.0,0.00013917,2]
[331853401,1720794661956,-500.0,0.00013917,2]
[331853402,1720794661966,-500.0,0.00013917,2]
[331853403,1720794661975,-500.0,0.00013917,2]
[331853404,1720794661986,-608.66,0.00013917,2]
[331853405,1720794661995,-500.0,0.00013917,2]
[331853406,1720794662005,-500.0,0.00013917,2]
[331853407,1720794662014,-785.46,0.00013917,2]
[331853408,1720794662023,-506.96,0.00013917,2]
[331853409,1720794662032,-500.0,0.00013917,2]
[331853410,1720794662041,-523.01,0.00013917,2]
[331853411,1720794662051,-532.23,0.00013917,2]
[331853412,1720794662061,-659.11,0.00013917,2]
[331853413,1720794662072,-500.0,0.00013917,2]
[331853414,1720794662081,-928.6,0.00013917,2]
[331853415,1720794662090,-500.0,0.00013917,2]
[331853416,1720794662099,-500.0,0.00013917,2]
[331853417,1720794662110,-857.04,0.00013917,2]
[331853418,1720794662119,-536.84,0.00013917,2]
[331853419,1720794662127,-1012.71,0.00013917,2]
[331853420,1720794662137,-500.0,0.00013917,2]
[331853421,1720794662150,-500.0,0.00013917,2]
[331853422,1720794662159,-787.1,0.00013917,2]
[331853423,1720794662169,-500.0,0.00013917,2]
[331853424,1720794662178,-500.0,0.00013917,2]
[331853425,1720794662190,-880.19,0.00013917,2]
[331853426,1720794662199,-500.0,0.00013917,2]
[331853427,1720794662208,-545.56,0.00013917,2]
[331853428,1720794662217,-500.0,0.00013917,2]
[331853429,1720794662227,-714.66,0.00013917,2]
[331853430,1720794662238,-500.0,0.00013917,2]
[331853431,1720794662247,-500.0,0.00013917,2]
[331853433,1720794662257,-500.0,0.00013917,2]
[331853434,1720794662268,-500.0,0.00013917,2]
[331853436,1720794662278,-500.0,0.00013917,2]
[331853437,1720794662287,-633.29,0.00013917,2]
[331853438,1720794662297,-728.52,0.00013917,2]
[331853439,1720794662306,-500.0,0.00013917,2]
[331853440,1720794662316,-500.0,0.00013917,2]
[331853441,1720794662326,-669.08,0.00013917,2]
[331853442,1720794662335,-500.0,0.00013917,2]
[331853443,1720794662345,-500.0,0.00013917,2]
[331853444,1720794662499,-500.0,0.00013917,2]
[331853445,1720794662509,-500.0,0.00013917,2]
[331853446,1720794662518,-718.04,0.00013917,2]
[331853447,1720794662528,-500.0,0.00013917,2]
[331853448,1720794662538,-500.0,0.00013917,2]
[331853449,1720794662548,-500.0,0.00013917,2]
[331853450,1720794662558,-500.0,0.00013917,2]
[331853451,1720794662568,-500.0,0.00013917,2]
[331853452,1720794662578,-500.0,0.00013917,2]
[331853453,1720794662588,-500.0,0.00013917,2]
[331853454,1720794662597,-662.74,0.00013917,2]
[331853455,1720794662607,-500.0,0.00013917,2]
[331853456,1720794662616,-605.31,0.00013917,2]
[331853457,1720794662626,-612.82,0.00013917,2]
[331853458,1720794662635,-500.0,0.00013917,2]
[331853459,1720794662645,-564.04,0.00013917,2]
[331853460,1720794662654,-840.15,0.00013917,2]
[331853461,1720794662663,-500.0,0.00013917,2]
[331853462,1720794662674,-976.09,0.00013917,2]
[331853463,1720794662683,-883.19,0.00013917,2]
[331853464,1720794662695,-500.0,0.00013917,2]
[331853465,1720794662704,-518.94,0.00013917,2]
[331853466,1720794662714,-500.0,0.00013917,2]
[331853467,1720794662724,-500.0,0.00013917,2]
[331853468,1720794662734,-804.2,0.00013917,2]
[331853469,1720794662743,-861.95,0.00013917,2]
[331853470,1720794662752,-642.51,0.00013917,2]
[331853471,1720794662762,-695.85,0.00013917,2]
[331853473,1720794662771,-595.38,0.00013917,2]
[331853474,1720794662782,-947.63,0.00013917,2]
[331853475,1720794662792,-500.0,0.00013917,2]
[331853476,1720794662802,-500.0,0.00013917,2]
[331853477,1720794662811,-500.0,0.00013917,2]
[331853478,1720794662821,-500.0,0.00013917,2]
[331853479,1720794662831,-505.8,0.00013917,2]
[331853480,1720794662841,-594.81,0.00013917,2]
[331853481,1720794662851,-1155.19,0.00013917,2]
[331853482,1720794662860,-544.81,0.00013917,2]
[331853483,1720794662870,-666.89,0.00013917,2]
[331853484,1720794662879,-666.06,0.00013917,2]
[331853485,1720794662889,-500.0,0.00013917,2]
[331853486,1720794662899,-500.0,0.00013917,2]
[331853487,1720794662908,-500.0,0.00013917,2]
[331853488,1720794662918,-500.0,0.00013917,2]
[331853489,1720794662927,-574.05,0.00013917,2]
[331853490,1720794662937,-713.58,0.00013917,2]
[331853491,1720794662947,-523.05,0.00013917,2]
[331853492,1720794662956,-500.0,0.00013917,2]
[331853493,1720794662966,-563.94,0.00013917,2]
[331853494,1720794662976,-500.0,0.00013917,2]
[331853495,1720794662986,-500.0,0.00013917,2]
[331853496,1720794662996,-520.25,0.00013917,2]
[331853497,1720794663006,-712.83,0.00013917,2]
[331853498,1720794663015,-821.92,0.00013917,2]
[331853499,1720794663025,-1374.04,0.00013917,2]
[331853500,1720794663035,-500.0,0.00013917,2]
[331853501,1720794663045,-500.0,0.00013917,2]
[331853502,1720794663055,-687.92,0.00013917,2]
[331853503,1720794663065,-883.42,0.00013917,2]
[331853504,1720794663078,-517.54,0.00013917,2]
[331853505,1720794663088,-667.83,0.00013917,2]
[331853506,1720794663097,-500.0,0.00013917,2]
[331853507,1720794663107,-1125.56,0.00013917,2]
[331853508,1720794663118,-804.76,0.00013917,2]
[331853509,1720794663127,-500.0,0.00013917,2]
[331853510,1720794663137,-500.0,0.00013917,2]
[331853511,1720794663149,-500.0,0.00013917,2]
[331853512,1720794663159,-861.99,0.00013917,2]
[331853513,1720794663168,-500.0,0.00013917,2]
[331853514,1720794663178,-500.0,0.00013917,2]
[331853515,1720794663188,-1018.26,0.00013917,2]
[331853516,1720794663198,-500.0,0.00013917,2]
[331853517,1720794663208,-833.97,0.00013917,2]
[331853518,1720794663217,-500.0,0.00013917,2]
[331853519,1720794663227,-1246.88,0.00013917,2]
[331853520,1720794663236,-500.0,0.00013917,2]
[331853521,1720794663245,-453.93,0.00013917,2]
[331853522,1720794663255,-500.0,0.00013917,2]
[331853523,1720794663264,-500.0,0.00013917,2]
[331853524,1720794663274,-743.04,0.00013917,2]
[331853525,1720794663284,-500.0,0.00013917,2]
[331853526,1720794663293,-627.82,0.00013917,2]
[331853527,1720794663303,-500.0,0.00013917,2]
[331853528,1720794663312,-500.0,0.00013917,2]
[331853529,1720794663321,-789.19,0.00013917,2]
[331853530,1720794663331,-564.93,0.00013917,2]
[331853531,1720794663340,-500.0,0.00013917,2]
[331853532,1720794663350,-500.0,0.00013917,2]
[331853533,1720794663360,-872.58,0.00013917,2]
[331853534,1720794663370,-500.0,0.00013917,2]
[331853535,1720794663380,-500.0,0.00013917,2]
[331853536,1720794663390,-631.32,0.00013917,2]
[331853537,1720794663400,-500.0,0.00013917,2]
[331853538,1720794663409,-500.0,0.00013917,2]
[331853539,1720794663419,-500.0,0.00013917,2]
[331853540,1720794663430,-1303.41,0.00013917,2]
[331853541,1720794663441,-987.74,0.00013917,2]
[331853542,1720794663451,-1057.82,0.00013917,2]
[331853543,1720794663461,-500.0,0.00013917,2]
[331853544,1720794663471,-500.0,0.00013917,2]
[331853545,1720794663481,-500.0,0.00013917,2]
[331853546,1720794663490,-500.0,0.00013917,2]
[331853547,1720794663500,-741.61,0.00013917,2]
[331853548,1720794663510,-500.0,0.00013917,2]
[331853549,1720794663520,-759.54,0.00013917,2]
[331853550,1720794663529,-675.64,0.00013917,2]
[331853551,1720794663539,-546.31,0.00013917,2]
[331853552,1720794663549,-1372.87,0.00013917,2]
[331853553,1720794663559,-500.0,0.00013917,2]
[331853554,1720794663570,-500.0,0.00013917,2]
[331853555,1720794663580,-500.0,0.00013917,2]
[331853556,1720794663590,-507.78,0.00013917,2]
[331853557,1720794663601,-851.8,0.00013917,2]
[331853558,1720794663611,-223.65980843,0.00013917,2]
[331853559,1720794663622,-1083.36,0.00013917,2]
[331853560,1720794663632,-500.0,0.00013917,2]
[331853561,1720794663642,-500.0,0.00013917,2]
[331853562,1720794663651,-500.0,0.00013917,2]
[331853563,1720794663661,-519.29,0.00013917,2]
[331853564,1720794663671,-500.0,0.00013917,2]
[331853565,1720794663681,-733.47,0.00013917,2]
[331853566,1720794663694,-500.0,0.00013917,2]
[331853567,1720794663705,-500.0,0.00013917,2]
[331853568,1720794663715,-628.29,0.00013917,2]
[331853569,1720794663724,-500.0,0.00013917,2]
[331853570,1720794663734,-500.0,0.00013917,2]
[331853571,1720794663744,-500.0,0.00013917,2]
[331853572,1720794663754,-500.0,0.00013917,2]
[331853573,1720794663764,-1269.7,0.00013917,2]
[331853574,1720794663774,-500.0,0.00013917,2]
[331853575,1720794663783,-1162.35,0.00013917,2]
[331853576,1720794663793,-500.0,0.00013917,2]
[331853577,1720794663803,-642.63961577,0.00013917,2]
[331853578,1720794663812,-1140.36,0.00013917,2]
[331853579,1720794663822,-500.0,0.00013917,2]
[331853580,1720794663832,-500.0,0.00013917,2]
[331853581,1720794663842,-988.4,0.00013917,2]
[331853582,1720794663852,-1188.5,0.00013917,2]
[331853583,1720794663862,-582.01,0.00013917,2]
[331853584,1720794663872,-742.99,0.00013917,2]
[331853585,1720794663882,-500.0,0.00013917,2]
[331853586,1720794663892,-500.0,0.00013917,2]
[331853587,1720794663902,-782.48,0.00013917,2]
[331853588,1720794663911,-500.0,0.00013917,2]
[331853589,1720794663921,-500.0,0.00013917,2]
[331853590,1720794663931,-641.89,0.00013917,2]
[331853591,1720794663942,-500.0,0.00013917,2]
[331853592,1720794663952,-500.0,0.00013917,2]
[331853593,1720794663961,-500.0,0.00013917,2]
[331853594,1720794663970,-648.56,0.00013917,2]
[331853595,1720794663980,-621.66,0.00013917,2]
[331853596,1720794663990,-500.0,0.00013917,2]
[331853597,1720794664000,-500.0,0.00013917,2]
[331853598,1720794664009,-837.4,0.00013917,2]
[331853599,1720794664019,-500.0,0.00013917,2]
[331853600,1720794664029,-1217.56,0.00013917,2]
[331853601,1720794664038,-500.0,0.00013917,2]
[331853602,1720794664048,-819.84,0.00013917,2]
[331853603,1720794664058,-500.0,0.00013917,2]
[331853604,1720794664069,-500.0,0.00013917,2]
[331853605,1720794664083,-1064.23,0.00013917,2]
[331853606,1720794664093,-500.0,0.00013917,2]
[331853607,1720794664103,-178.33865567,0.00013917,2]
[331853608,1720794664115,-4271.54,0.00013917,2]
[331853609,1720794664125,-1838.14,0.00013917,2]
[331853610,1720794664135,-500.0,0.00013917,2]
[331853611,1720794664144,-989.52,0.00013917,2]
[331853612,1720794664157,-500.0,0.00013917,2]
[331853613,1720794664166,-500.0,0.00013917,2]
[331853614,1720794664176,-1038.55,0.00013917,2]
[331853615,1720794664186,-835.73,0.00013917,2]
[331853616,1720794664198,-500.0,0.00013917,2]
[331853617,1720794664208,-720.1,0.00013917,2]
[331853618,1720794664217,-500.0,0.00013917,2]
[331853619,1720794664227,-903.17,0.00013917,2]
[331853620,1720794664236,-948.98,0.00013917,2]
[331853621,1720794664246,-852.64,0.00013917,2]
[331853622,1720794664255,-500.0,0.00013917,2]
[331853623,1720794664265,-500.0,0.00013917,2]
[331853624,1720794664275,-500.0,0.00013917,2]
[331853625,1720794664285,-500.0,0.00013917,2]
[331853626,1720794664294,-540.42,0.00013917,2]
[331853627,1720794664303,-2299.04,0.00013917,2]
[331853628,1720794664312,-536.35243489,0.00013917,2]
[331853629,1720794664321,-1111.09,0.00013917,2]
[331853630,1720794664331,-847.27,0.00013917,2]
[331853631,1720794664340,-500.0,0.00013917,2]
[331853632,1720794664350,-500.0,0.00013917,2]
[331853633,1720794664360,-563.5,0.00013917,2]
[331853634,1720794664370,-1080.3,0.00013917,2]
[331853635,1720794664379,-500.0,0.00013917,2]
[331853636,1720794664389,-500.0,0.00013917,2]
[331853637,1720794664398,-1087.76,0.00013917,2]
[331853638,1720794664408,-792.46,0.00013917,2]
[331853639,1720794664417,-777.64,0.00013917,2]
[331853640,1720794664427,-500.0,0.00013917,2]
[331853641,1720794664436,-500.0,0.00013917,2]
[331853642,1720794664450,-859.86,0.00013917,2]
[331853643,1720794664459,-595.98,0.00013917,2]
[331853644,1720794664469,-500.0,0.00013917,2]
[331853645,1720794664478,-500.0,0.00013917,2]
[331853646,1720794664488,-966.7,0.00013917,2]
[331853647,1720794664497,-770.6,0.00013917,2]
[331853648,1720794664507,-500.0,0.00013917,2]
[331853649,1720794664517,-1183.71,0.00013917,2]
[331853650,1720794664527,-1241.85,0.00013917,2]
[331853651,1720794664537,-500.0,0.00013917,2]
[331853652,1720794664546,-1004.68,0.00013917,2]
[331853653,1720794664556,-500.0,0.00013917,2]
[331853654,1720794664566,-955.42,0.00013917,2]
[331853655,1720794664575,-1077.37,0.00013917,2]
[331853656,1720794664585,-500.0,0.00013917,2]
[331853657,1720794664595,-1386.2,0.00013917,2]
[331853658,1720794664605,-500.0,0.00013917,2]
[331853659,1720794664614,-500.0,0.00013917,2]
[331853660,1720794664623,-500.0,0.00013917,2]
[331853661,1720794664632,-581.34,0.00013917,2]
[331853662,1720794664642,-500.0,0.00013917,2]
[331853663,1720794664652,-500.0,0.00013917,2]
[331853664,1720794664662,-500.0,0.00013917,2]
[331853665,1720794664671,-500.0,0.00013917,2]
[331853666,1720794664680,-533.16,0.00013917,2]
[331853667,1720794664691,-1428.78,0.00013917,2]
[331853668,1720794664700,-500.0,0.00013917,2]
[331853669,1720794664710,-742.08,0.00013917,2]
[331853670,1720794664719,-1248.36,0.00013917,2]
[331853671,1720794664729,-1524.13,0.00013917,2]
[331853672,1720794664739,-500.0,0.00013917,2]
[331853673,1720794664748,-1206.67,0.00013917,2]
[331853674,1720794664758,-500.0,0.00013917,2]
[331853675,1720794664767,-500.0,0.00013917,2]
[331853676,1720794664777,-500.0,0.00013917,2]
[331853677,1720794664786,-765.74,0.00013917,2]
[331853678,1720794664796,-500.0,0.00013917,2]
[331853679,1720794664806,-500.0,0.00013917,2]
[331853680,1720794664816,-654.42,0.00013917,2]
[331853681,1720794664826,-1158.32,0.00013917,2]
[331853682,1720794664835,-540.32399875,0.00013917,2]
[331853683,1720794664845,-517.72,0.00013917,2]
[331853684,1720794664855,-985.8,0.00013917,2]
[331853685,1720794664866,-1158.97,0.00013917,2]
[331853686,1720794664875,-1303.35,0.00013917,2]
[331853687,1720794664885,-642.75,0.00013917,2]
[331853688,1720794664895,-500.0,0.00013917,2]
[331853689,1720794664905,-675.59,0.00013917,2]
[331853690,1720794665062,-500.0,0.00013917,2]
[331853691,1720794665077,-953.14,0.00013917,2]
[331853692,1720794665087,-1174.91,0.00013917,2]
[331853693,1720794665098,-500.0,0.00013917,2]
[331853694,1720794665109,-502.48,0.00013917,2]
[331853695,1720794665119,-500.0,0.00013917,2]
[331853696,1720794665129,-712.64,0.00013917,2]
[331853697,1720794665139,-1198.74,0.00013917,2]